Cogmind - Beta 10.2 @@@ ROGUE MODE // 2021.06.12 @ 10:16:22 Player: Plexion Result: Destroyed by as-40923 with Assembled F-torch Performance ------------- Evolutions (0) 0 Regions Visited (4) 800 Robots Destroyed (24) 120 Value Destroyed (774) 774 Prototype IDs (0) 0 Alien Tech Used (0) 0 Bonus (117) 117 TOTAL SCORE: 1811 Bonus ------- Follower Combat Kills 135 Friendly Fire -18 Cogmind --------- Core Integrity 0/250 Matter 255/300 Energy 88/265 System Corruption 4% Temperature Cool (44) Movement Treading (200) Ox2 Location -9/Mines Parts ------- > --- POWER (1) -------- Improved Ion Engine > --- PROPULSION (2) --- Light Treads > --- UTILITY (2) ------ Large Storage Unit High-capacity Storage Unit > --- WEAPON (2) ------- Light Assault Rifle Light Cannon > --- INVENTORY (18) --- Medium Storage Unit Medium Storage Unit Large Storage Unit High-capacity Storage Unit Light Armor Plating Light Armor Plating Light Armor Plating Hardened Light Armor Plating Hardened Light Armor Plating Hardened Light Armor Plating Hardened Light Armor Plating Light Assault Rifle Peak State ------------ > --- POWER ------------ Improved Ion Engine > --- PROPULSION ------- Armored Wheel Armored Wheel > --- UTILITY ---------- Large Storage Unit High-capacity Storage Unit > --- WEAPON ----------- Heavy EM Pulse Gun Heavy EM Pulse Gun > --- INVENTORY -------- Improved Ion Engine Light Treads Medium Storage Unit Medium Storage Unit Large Storage Unit High-capacity Storage Unit Light Armor Plating Hardened Light Armor Plating Hardened Light Armor Plating Hardened Light Armor Plating Hardened Light Armor Plating EM Pulse Gun Heavy EM Pulse Gun Light Assault Rifle Light Assault Rifle [Rating: 14] Favorites ----------- Power Improved Ion Engine Engine Improved Ion Engine Propulsion Armored Wheel Treads Light Treads Wheel Armored Wheel Utility Large Storage Unit Storage Large Storage Unit Weapon Heavy EM Pulse Gun Energy Gun Heavy EM Pulse Gun Ballistic Gun Light Assault Rifle Ballistic Cannon Light Cannon Build | -11 -10 -10 -10 -9 ------- Run | Scr Mat Min Exi Min Slots Evolved . | . . . . . Power . | . . . . . Propulsion . | . . . . . Utility . | . . . . . Weapon . | . . . . . Parts Attached 24 | 7 7 4 . 6 Power 3 | 1 1 . . 1 Engine 3 | 1 1 . . 1 Core . | . . . . . Reactor . | . . . . . Propulsion 6 | 2 . 2 . 2 Treads 4 | 2 . . . 2 Leg . | . . . . . Wheel 2 | . . 2 . . Hover . | . . . . . Flight . | . . . . . Utility 5 | 1 4 . . . Device . | . . . . . Storage 5 | 1 4 . . . Processor . | . . . . . Hackware . | . . . . . Protection . | . . . . . Artifact . | . . . . . Weapon 10 | 3 2 2 . 3 Energy Gun 8 | 3 2 2 . 1 Energy Cannon . | . . . . . Ballistic Gun 1 | . . . . 1 Ballistic Cannon 1 | . . . . 1 Launcher . | . . . . . Special Weapon . | . . . . . Impact Weapon . | . . . . . Slashing Weapon . | . . . . . Piercing Weapon . | . . . . . Special Melee Weapon . | . . . . . Unidentified Prototypes . | . . . . . Parts Lost 10 | . . 3 . 7 Power 1 | . . . . 1 Propulsion 4 | . . 1 . 3 Utility . | . . . . . Weapon 5 | . . 2 . 3 Highest Loss Streak 6 | . . 1 . 6 Average Slot Usage (%) 97 | . 97 96 100 97 Engine 14 | . 14 14 14 14 Treads 12 | . 28 5 . 1 Wheel 14 | . . 19 28 26 Storage 27 | . 25 28 28 28 Energy Gun 27 | . 28 27 28 26 Naked Turns . | . . . . . Heaviest Build 61 | 13 61 61 61 60 Greatest Support 40 | 40 40 40 24 24 Greatest Overweight (x) 4 | . 1 3 2 4 Average Overweight (x) 1 | . . 1 2 2 Largest Inventory Capacity 18 | 6 18 18 18 18 Average Capacity 16 | 5 14 18 18 18 Most Carried 18 | 2 18 18 18 18 Average Carried 14 | . 11 16 18 16 Final Capacity 18 | 6 18 18 18 18 Final Carried 18 | 2 17 18 18 12 Class Distribution -------------------- 100% | Mutant Dominant Class ---------------- Mutant | -10/Materials Mutant | -10/Mines Mutant | -10/Exiles Mutant | -9/Mines Resources | -11 -10 -10 -10 -9 ----------- Run | Scr Mat Min Exi Min Matter Collected 385 | 221 99 55 . 10 Remotely . | . . . . . Salvage Created 1043 | . 457 534 . 52 Parts 57 | . 21 30 . 6 Haulers Intercepted . | . . . . . Recyclers Shooed 2 | . . 1 . 1 Parts Field Recycled . | . . . . . Retrieved Matter . | . . . . . Parts Self-Destructed . | . . . . . Prevented . | . . . . . Kills | -11 -10 -10 -10 -9 ------- Run | Scr Mat Min Exi Min Combat Hostiles Destroyed 19 | . 8 11 . . Guns 17 | . 7 10 . . AOE 1 | . 1 . . . Classes Destroyed 5 | . 2 2 . 1 Worker 2 | . 2 . . . Builder 1 | . . . . 1 Tunneler 2 | . . 1 . 1 Grunt 17 | . 8 9 . . Sentry 2 | . . 2 . . Best Kill Streak 3 | . 3 2 . 1 Combat Bots Only 3 | . 3 2 . . Max Kills in Single Turn 1 | . 1 1 . 1 Gunslinging . | . . . . . Exploded 1 | . 1 . . . Melee . | . . . . . Uniques/NPCs Destroyed . | . . . . . Combat | -11 -10 -10 -10 -9 -------- Run | Scr Mat Min Exi Min Damage Taken 1452 | . 328 348 . 776 Core 255 | . 43 70 . 142 Absorbed by Shields . | . . . . . Core Remaining (%) 100 | 100 . . . . Volleys Fired 67 | . 27 30 . 10 Largest 2 | . 2 2 . 2 Hottest 90 | . 90 90 . 90 Shots Fired 132 | . 54 58 . 20 Gun 132 | . 54 58 . 20 Cannon . | . . . . . Launcher . | . . . . . Special . | . . . . . Kinetic . | . . . . . Thermal . | . . . . . Explosive . | . . . . . Electromagnetic 132 | . 54 58 . 20 Robot Hit Streak 9 | . 6 9 . 5 Robot Miss Streak 4 | . 3 4 . 3 Penetration Max . | . . . . . Secondary Targets 5 | . 2 3 . . Max Gunslinging Chain 1 | . 1 1 . . Shots Hit Robots 86 | . 35 38 . 13 Core Hits 35 | . 15 15 . 5 Critical Hits . | . . . . . Critical Kills . | . . . . . Critical Parts Destroyed . | . . . . . Melee Attacks . | . . . . . Impact . | . . . . . Slashing . | . . . . . Piercing . | . . . . . Sneak Attacks . | . . . . . Combat Hostiles . | . . . . . Follow-up Attacks . | . . . . . Damage Inflicted 1469 | . 728 526 . 215 Guns 1260 | . 543 526 . 191 Cannons . | . . . . . Explosions 209 | . 185 . . 24 Melee . | . . . . . Ramming . | . . . . . Kinetic . | . . . . . Thermal 209 | . 185 . . 24 Explosive . | . . . . . Electromagnetic 1260 | . 543 526 . 191 Impact . | . . . . . Slashing . | . . . . . Piercing . | . . . . . Highest Corruption 4 | . 1 1 1 4 Average Corruption 1 | . 1 1 1 1 Corruption Purged . | . . . . . Effects 10 | . 2 4 3 1 Message Errors 2 | . . 2 . . Energy Discharges 4 | . 2 1 . 1 Data Loss (minor) 4 | . . 1 3 . Overload Shots . | . . . . . Overflow Damage 21 | . 21 . . . Projectiles . | . . . . . Explosions 21 | . 21 . . . Melee . | . . . . . Knockbacks . | . . . . . Impact . | . . . . . Kinetic . | . . . . . Secondary . | . . . . . Self-Inflicted Damage 28 | . 8 . . 20 Shots 2 | . 1 . . 1 Rammed . | . . . . . Targets Rammed . | . . . . . Kicked . | . . . . . Crushed . | . . . . . Highest Temperature 216 | . 216 216 . 140 Average Temperature 71 | . 76 78 . 41 Received Heat Transfer 614 | . 138 171 . 305 Effects 1 | . . 1 . . Energy Bleed 1 | . . 1 . . Siege Activations . | . . . . . Robots Corrupted 1 | . . 1 . . Combat Hostiles 1 | . . 1 . . Parts Fried 4 | . 1 3 . . Impact Corruptions . | . . . . . Robots Melted . | . . . . . Combat Hostiles . | . . . . . Parts Melted . | . . . . . Heat Transferred 250 | . 200 . . 50 Parts Sabotaged . | . . . . . Parts Stolen . | . . . . . Parts Stripped . | . . . . . Power Chain Reactions 4 | . 3 . . 1 Missiles Intercepted . | . . . . . Alert | -11 -10 -10 -10 -9 ------- Run | Scr Mat Min Exi Min Peak Influence 216 | . 216 140 . 67 Initial 6 | . . 6 . . Average 69 | . 94 60 . 48 Maximum Alert Level 1 | . 1 . . . Low Security (%) 98 | 100 94 100 . 100 Level 1 1 | . 5 . . . Level 2 . | . . . . . Level 3 . | . . . . . Level 4 . | . . . . . Level 5 . | . . . . . High Security . | . . . . . Max Security . | . . . . . Squads Dispatched 1 | . 1 . . . Investigation 1 | . 1 . . . Extermination . | . . . . . Reinforcement . | . . . . . Assault . | . . . . . Garrison . | . . . . . Intercept . | . . . . . Construction Impeded . | . . . . . Haulers Reinforced . | . . . . . Stealth | -11 -10 -10 -10 -9 --------- Run | Scr Mat Min Exi Min Distress Signals . | . . . . . Communications Jammed . | . . . . . Distress Signals . | . . . . . Times Spotted 49 | . 17 15 . 17 Peak Tracking Total 15 | . 3 3 . 15 Tactical Retreats 4 | . 1 2 . 1 Traps | -11 -10 -10 -10 -9 ------- Run | Scr Mat Min Exi Min Traps Triggered 2 | . 2 . . . Indirectly . | . . . . . Trap Hack Attempts . | . . . . . Triggered . | . . . . . Disarmed . | . . . . . Reprogrammed . | . . . . . Reused . | . . . . . Traps Extracted . | . . . . . Installed . | . . . . . Triggered . | . . . . . Machines | -11 -10 -10 -10 -9 ---------- Run | Scr Mat Min Exi Min Machines Disabled 3 | . 2 1 . . Max in Single Turn 1 | . 1 1 . . Machines Sabotaged . | . . . . . Garrisons Compromised . | . . . . . Overloaded Fab Kills . | . . . . . Fab Network Shutdowns . | . . . . . Hacking | -11 -10 -10 -10 -9 --------- Run | Scr Mat Min Exi Min Machines Accessed 2 | . 1 . 1 . Terminals 1 | . 1 . . . Fabricators . | . . . . . Repair Stations . | . . . . . Recycling Units . | . . . . . Scanalyzers . | . . . . . Garrison Access . | . . . . . Total Hacks 4 | . 3 . 1 . Successful 3 | . 2 . 1 . Failed 1 | . 1 . . . Catastrophic . | . . . . . Database Lockouts . | . . . . . Manual 3 | . 3 . . . Terminals 3 | . 3 . . . Fabricators . | . . . . . Repair Stations . | . . . . . Recycling Units . | . . . . . Scanalyzers . | . . . . . Garrison Access . | . . . . . Terminal Hacks 3 | . 2 . 1 . Record 1 | . . . 1 . Robot Analysis 2 | . 2 . . . Fabricator Hacks . | . . . . . Repair Station Hacks . | . . . . . Recycling Unit Hacks . | . . . . . Scanalyzer . | . . . . . Garrison Access Hacks . | . . . . . Unauthorized Hacks . | . . . . . Terminals . | . . . . . Fabricators . | . . . . . Repair Stations . | . . . . . Recycling Units . | . . . . . Scanalyzers . | . . . . . Garrison Access . | . . . . . Data Cores Recovered . | . . . . . Used . | . . . . . Hacking Detections 1 | . 1 . . . Full Trace Events . | . . . . . Feedback Events . | . . . . . Feedback Blocked . | . . . . . Robot Schematics Acquired . | . . . . . Robots Built . | . . . . . Matter . | . . . . . Time . | . . . . . Total Robot Build Rating . | . . . . . Part Schematics Acquired . | . . . . . Parts Built . | . . . . . Matter . | . . . . . Time . | . . . . . Total Part Build Rating . | . . . . . Parts Repaired . | . . . . . Time . | . . . . . Parts Recycled . | . . . . . Recycled Matter . | . . . . . Retrieved Matter . | . . . . . Retrieved Components . | . . . . . Parts Scanalyzed . | . . . . . Part Schematics Acquired . | . . . . . Parts Damaged . | . . . . . Bothacking | -11 -10 -10 -10 -9 ------------ Run | Scr Mat Min Exi Min Used RIF Installer . | . . . . . Robots Hacked . | . . . . . Non-combat . | . . . . . Combat . | . . . . . Robot Hacks Applied . | . . . . . Relay Couplers Released . | . . . . . Robots Rewired . | . . . . . Allies Hacked . | . . . . . Hacks Repelled . | . . . . . Allies | -11 -10 -10 -10 -9 -------- Run | Scr Mat Min Exi Min Total Allies 3 | . . 3 . . Largest Group 3 | . . 3 3 3 Highest-Rated Group 40 | . . 40 40 40 Highest-Rated Ally 16 | . . 16 16 16 Total Orders . | . . . . . Ally Attacks 25 | . . 5 . 20 Total Damage 281 | . . 60 . 221 Kills 6 | . . 3 . 3 Allies Corrupted . | . . . . . Allies Melted 2 | . . . . 2 Intel | -11 -10 -10 -10 -9 ------- Run | Scr Mat Min Exi Min Robot Analysis Total 2 | . 2 . . . Derelict Logs Recovered 3 | . . 3 . . Drone Launches . | . . . . . Drone Recoveries . | . . . . . Exploration | -11 -10 -10 -10 -9 ------------- Run | Scr Mat Min Exi Min Turns Passed 2565 | 81 822 1251 189 222 Spaces Moved 1329 | 47 407 539 169 167 Core 4 | 4 . . . . Treads 543 | 43 407 90 . 3 Legs . | . . . . . Wheels 782 | . . 449 169 164 Hover . | . . . . . Flight . | . . . . . Fastest Speed 50 | 50 160 110 110 110 Average Speed 137 | 150 176 124 110 112 Slowest Speed 220 | 160 180 220 110 200 Overloaded Moves . | . . . . . Propulsion Burnouts . | . . . . . Robots Hopped . | . . . . . Cave-ins Triggered . | . . . . . Exploration Rate (%) 56 | 5 86 87 53 50 Regions Visited 4 Branch Regions 3 Pre-discovered Areas . | . . . . . Known Exits Taken . | . . . . . Unknown Exits Taken 4 | 1 1 1 1 . Scrap Searched 2 | . . 1 . 1 Spaces Dug . | . . . . . Terrain Destroyed 20 | . 14 . . 6 Melee . | . . . . . Projectile . | . . . . . AOE 20 | . 14 . . 6 Terrain Rammed . | . . . . . Walls Destroyed . | . . . . . Machines Disabled . | . . . . . Actions | -11 -10 -10 -10 -9 --------- Run | Scr Mat Min Exi Min Total 1932 | 54 460 1063 172 183 Wait 490 | . 1 485 4 . Move 1325 | 46 406 538 168 167 Hop . | . . . . . Pick Up 20 | 1 14 5 . . Fast Attach 7 | 6 1 . . . Attach 9 | . . 3 . 6 Detach . | . . . . . Swap 8 | 1 6 1 . . Drop 6 | . 5 1 . . Fire 67 | . 27 30 . 10 Melee . | . . . . . Ram . | . . . . . Kick . | . . . . . Crush . | . . . . . Escape Stasis . | . . . . . Rewire . | . . . . . Trap . | . . . . . Miscellaneous . | . . . . . Route ------- -11/Scrapyard -10/Materials (discovered 4 exits: [*Mat x2] / [*Min x2]) -10/Mines (discovered 3 exits: [*Mat x2] / *Exi) -10/Exiles -9/Mines History --------- Turn | Location | Event 35 | -11/Scrapyard | Discovered new exit (range 16) 82 | -11/Scrapyard | Entered Materials 312 | -10/Materials | Build established: Mutant 480 | -10/Materials | Discovered new exit (range 5) 621 | -10/Materials | Discovered new exit (range 10) 678 | -10/Materials | Discovered new exit (range 4) 714 | -10/Materials | Discovered new exit (range 15) 904 | -10/Materials | Entered Mines 904 | -10/Mines | Discovered new exit (range 14) 1029 | -10/Mines | Discovered new exit (range 10) 1115 | -10/Mines | Excavation squad dispatched 1115 | -10/Mines | A large section of the Mines collapsed 1365 | -10/Mines | Excavation squad dispatched 1627 | -10/Mines | Learned Materials stockpile data 1714 | -10/Mines | Assisted by bots powering up and referring to "LRC-V3" 1764 | -10/Mines | Learned location of 1 exit from Materials 1909 | -10/Mines | Learned location of 2 exits from Materials 2004 | -10/Mines | Discovered new exit (range 7) 2135 | -10/Mines | Deemed a non-threat by the Exiles lab entrance 2155 | -10/Mines | Entered Exiles 2155 | -10/Exiles | Found Exiles lab abandoned 2155 | -10/Exiles | Accompanied by 3 allies 2328 | -10/Exiles | Discovered new exit (range 12) 2344 | -10/Exiles | Entered Mines 2344 | -9/Mines | Accompanied by 3 allies 2347 | -9/Mines | Core integrity fell below 50% 2348 | -9/Mines | Met a Derelict bent on vengeance 2509 | -9/Mines | Assembled infested the area 2514 | -9/Mines | Assisted by a Guerilla fighting off Assembled 2558 | -9/Mines | Core integrity fell below 20% 2566 | -9/Mines | Destroyed by as-40923 with Assembled F-torch Last Messages --------------- I've been tracking a group of Assembled to figure out where they're coming from, and they're closing on this area, come on!" 02519_ HX-Q0R(h): "I'll hold them off! Go on ahead or try to find another way!" 02521_ Trooper 1b overheating. 02523_ Trooper 1b heat damages core (-8). 02524_ R-06 Scavenger destroyed. 02541_ as-82557 misfires. 02542_ EM Pulse Gun destroyed. 02545_ Knocked back. 02548_ Arm. Wheel destroyed. 02554_ Hvy. EM Pulse Gun destroyed. 02557_ Arm. Wheel destroyed. 02557_ Imp. Ion Engine destroyed. 02558_ as-40017 destroyed. 02561_ Lgt. Treads destroyed. 02561_ System corrupted by crushing effect (+3). 02563_ D-53 Grenadier system corrupted by crushing effect. 02563_ as-95977 destroyed. 02564_ D-53 Grenadier system terminally corrupted. Map ----- +----------------------------------------------------+ | ?????????????????????????????????????????????????? | | ?????????????????????????????????????????????????? | | ?????????????????????????????????????????????????? | | ?????????????????????????????????????????????????? | | ?????????????????????????????????????????????????? | | ?????????????????????????????????????????????????? | | ?????????????????####????????????????????????????? | | ????????????????# ##???????????????????????????? | | ??????####?????# #???????????????????????????? | | ?????## ##???# ?????????????????????????????? | | ????## ##?? #???? ##?????????????????????? | | ##### ### #????? % ???????????????????? | | ##???? ????????????????? | | ##??? ????????????????? | | ### ### #### ?????????????????? | | ??# #?## ?????????????????? | | ??# #??## ## ??????????????????? | | ?## ##??### ##?? ###### ??????????????????? | | ?#" "#????## #### ##### ???????????????????? | | ?#"%"#?????# ##% %=d= #???????????????????? | | ?#"!"#?????# ##* $ a #???????????????????? | | ### ########%##% #???# % ##??????????????????? | | #?# *= !%#???# #??????????????????? | | #####?# * #???# % #???????????????????? | | ??????## ##### ##????# % ####?????????????????? | | ???????# ????# #?????# @a # #?????????????????? | | ???????##?????# #????## a #?????????????????? | | #?????????????# #???## #?????????????????? | | #?????????????# #??## a ##?????????????????? | | #?????????????# #??# ##??????????????????? | | #?????????????# #??# aa #???????????????????? | | ??????????????# #??## #???????????????????? | | ??????????????# #???## aa a #???????????????????? | | ??????????????# #????## ##???????????????????? | | ??????????????# #?????## #????????????????????? | | ??????????????# #??????#a ##???????????????????? | | ??????????????# #?###### #???????????????????? | | #?????????????# ### #???????????????????? | | ##????????????# #???????????????????? | | #????????????#### ##???????????????????? | | #???????????????# #????????????????????? | | ##???????????????## ##????????????????????? | | #?????????????????## ######?????????????????????? | | ???????????????????####??????????????????????????? | | ?????????????????????????????????????????????????? | | | | | | | | | | | +----------------------------------------------------+ Best States ------------- Heat Dissipation 25 Energy Generation 12 Energy Capacity 265 Matter Stores 300 Matter Capacity 300 Sight Range 16 Terrain Scan Density 10 Evasion (%) 40 Recoil Reduction 2 Item Schematics ----------------- None Robot Schematics ------------------ None Fabricated ------------ Nothing Alien Tech Used ----------------- None Achievements -------------- None Challenges ------------ None Game ------ Seed ReinforcedNetworkPrototype Manual? 0 Play Time 00:12:46 Cumulative 190.1 hours Start 2021.06.12 @ 10:05:41 End 2021.06.12 @ 10:16:22 Sessions 1 Manual Loads 0 Difficulty Rogue Special Mode None Game No. 241 Rogue 154 Adventurer 87 Explorer 0 Win Type - Total 4 Types 3/0/0/1/0/0/0/0/0 Lore% 67 Gallery% 75 Achievement% 61 Wizard Run 0 Options --------- ASCII 0 Keyboard 1 Movement Numpad Keybinds 0 Fullscreen 1 Font 18/Smallcaps Map View 76x50 Tactical HUD 1 Map Filters NONE Filters NONE Steam 1 RUN: d4a19294-63cf-45eb-94d3-9d9124d58461